fUST/lending_fUST_20240805
["ID","MTS","AMOUNT","RATE_DAILY","PERIOD"]
[334152013,1722798653232,-500.0,0.00013972,2]
[334152015,1722798653241,-151.0,0.00013972,2]
[334152017,1722798653250,-500.0,0.00013972,2]
[334152019,1722798653259,-500.0,0.00013972,2]
[334152021,1722798653269,-500.0,0.00013972,2]
[334152023,1722798653278,-548.97,0.00013972,2]
[334152025,1722798653288,-500.0,0.00013972,2]
[334152027,1722798653296,-500.0,0.00013972,2]
[334152029,1722798653308,-500.0,0.00013972,2]
[334152031,1722798653318,-500.0,0.00013972,2]
[334152033,1722798653327,-1617.76,0.00013972,2]
[334152034,1722798653336,-164.065884,0.00013972,2]
[334152036,1722798653344,-500.0,0.00013972,2]
[334152038,1722798653354,-500.0,0.00013972,2]
[334152040,1722798653363,-881.31,0.00013972,2]
[334152042,1722798653372,-500.0,0.00013972,2]
[334152044,1722798653381,-748.23,0.00013972,2]
[334152046,1722798653391,-193.78149823,0.00013972,2]
[334152048,1722798653400,-500.0,0.00013972,2]
[334152050,1722798653409,-500.0,0.00013972,2]
[334152052,1722798653418,-500.0,0.00013972,2]
[334152054,1722798653428,-500.0,0.00013972,2]
[334152056,1722798653438,-1896.14,0.00013972,2]
[334152058,1722798653447,-158.189145,0.00013972,2]
[334152060,1722798653456,-158.189145,0.00013972,2]
[334152062,1722798653466,-500.0,0.00013972,2]
[334152064,1722798653475,-500.0,0.00013972,2]
[334152066,1722798653485,-500.0,0.00013972,2]
[334152068,1722798653494,-1639.321464,0.00013972,2]
[334152070,1722798653503,-151.0,0.00013972,2]
[334152072,1722798653513,-500.0,0.00013972,2]
[334152074,1722798653522,-500.0,0.00013972,2]
[334152076,1722798653531,-500.0,0.00013972,2]
[334152077,1722798653541,-1639.321464,0.00013972,2]
[334152079,1722798653550,-500.0,0.00013972,2]
[334152081,1722798653561,-500.0,0.00013972,2]
[334152083,1722798653570,-500.0,0.00013972,2]
[334152085,1722798653580,-500.0,0.00013972,2]
[334152088,1722798653590,-320.938911,0.00013972,2]
[334152090,1722798653600,-598.22419583,0.00013972,2]
[334152091,1722798653609,-500.0,0.00013972,2]
[334152093,1722798653618,-504.0,0.00013972,2]
[334152095,1722798653628,-320.938911,0.00013972,2]
[334152097,1722798653638,-500.0,0.00013972,2]
[334152099,1722798653647,-500.0,0.00013972,2]
[334152101,1722798653657,-473.2266038,0.00013972,2]
[334152103,1722798653667,-500.0,0.00013972,2]
[334152105,1722798653676,-500.0,0.00013972,2]
[334152107,1722798653685,-500.0,0.00013972,2]
[334152109,1722798653694,-151.0,0.00013972,2]
[334152111,1722798653703,-150.112233,0.000141,2]
[334152113,1722798653713,-153.0,0.00014219,2]
[334152115,1722798653722,-153.0,0.00014219,2]
[334152117,1722798653732,-500.0,0.00014235,2]
[334152119,1722798653741,-558.155727,0.00014235,2]
[334152121,1722798653750,-558.155727,0.00014235,2]
[334152123,1722798653760,-151.0,0.00014235,2]
[334152125,1722798653770,-500.0,0.00014235,2]
[334152136,1722798653875,-151.0,0.00014235,2]
[334152138,1722798653885,-151.0,0.00014235,2]
[334152140,1722798653894,-151.0,0.00014235,2]
[334152142,1722798653904,-151.0,0.00014235,2]
[334152144,1722798653913,-151.0,0.00014235,2]
[334152146,1722798653924,-168.996398,0.00014235,2]
[334152148,1722798653934,-168.996398,0.00014235,2]
[334152150,1722798653943,-1185.65494,0.00014235,2]
[334152151,1722798653953,-1185.65494,0.00014235,2]
[334152153,1722798653962,-151.0,0.00014235,2]
[334152155,1722798653972,-24386.4395178,0.00014236,2]
[334152158,1722798653982,-1927.69,0.00014244,2]
[334152160,1722798653994,-595.86,0.00014245,2]
[334152162,1722798654005,-500.0,0.00014245,2]
[334152164,1722798654017,-500.0,0.00014245,2]
[334152166,1722798654027,-500.0,0.00014245,2]
[334152168,1722798654038,-684.17,0.00014245,2]
[334152170,1722798654048,-500.0,0.00014245,2]
[334152172,1722798654058,-500.0,0.00014245,2]
[334152173,1722798654070,-151.0,0.00014245,2]
[334152175,1722798654080,-151.0,0.00014245,2]
[334152177,1722798654089,-151.0,0.00014245,2]
[334152179,1722798654098,-158.189145,0.00014245,2]
[334152181,1722798654108,-158.189145,0.00014245,2]
[334152183,1722798654118,-500.0,0.00014246,2]
[334152185,1722798654127,-500.0,0.00014246,2]
[334152187,1722798654137,-500.0,0.00014246,2]
[334152189,1722798654146,-500.0,0.00014246,2]
[334152191,1722798654156,-500.0,0.00014246,2]
[334152193,1722798654166,-621.44272555,0.00014246,2]
[334152195,1722798654175,-500.0,0.00014246,2]
[334152197,1722798654185,-703.06,0.00014246,2]
[334152199,1722798654195,-529.97,0.00014246,2]
[334152201,1722798654205,-1117.560069,0.00014246,2]
[334152203,1722798654219,-151.0,0.00014246,2]
[334152205,1722798654228,-609.47,0.00014246,2]
[334152206,1722798654238,-2235.31,0.00014246,2]
[334152208,1722798654248,-500.0,0.00014246,2]
[334152210,1722798654258,-500.0,0.00014246,2]
[334152212,1722798654268,-987.04,0.00014246,2]
[334152214,1722798654278,-500.0,0.00014246,2]
[334152216,1722798654289,-500.0,0.00014246,2]
[334152218,1722798654299,-578.51,0.00014246,2]
[334152220,1722798654312,-1052.12,0.00014246,2]
[334152222,1722798654322,-500.0,0.00014246,2]
[334152224,1722798654332,-500.0,0.00014246,2]
[334152226,1722798654341,-500.0,0.00014246,2]
[334152228,1722798654351,-500.0,0.00014246,2]
[334152230,1722798654360,-500.0,0.00014246,2]
[334152232,1722798654369,-500.0,0.00014246,2]
[334152233,1722798654378,-500.0,0.00014246,2]
[334152235,1722798654388,-500.0,0.00014246,2]
[334152237,1722798654398,-548.97,0.00014246,2]
[334152239,1722798654408,-500.0,0.00014246,2]
[334152241,1722798654419,-500.0,0.00014246,2]
[334152243,1722798654429,-1617.76,0.00014246,2]
[334152245,1722798654439,-881.31,0.00014246,2]
[334152247,1722798654450,-748.23,0.00014246,2]
[334152249,1722798654460,-1896.14,0.00014246,2]
[334152251,1722798654470,-500.0,0.00014246,2]
[334152253,1722798654480,-1639.321464,0.00014246,2]
[334152255,1722798654490,-169.486264,0.00014246,2]
[334152256,1722798654500,-500.0,0.00014246,2]
[334152258,1722798654510,-500.0,0.00014246,2]
[334152260,1722798654520,-1639.321464,0.00014246,2]
[334152262,1722798654529,-500.0,0.00014246,2]
[334152264,1722798654539,-320.938911,0.00014246,2]
[334152266,1722798654548,-500.0,0.00014246,2]
[334152268,1722798654558,-320.938911,0.00014246,2]
[334152270,1722798654574,-500.0,0.00014246,2]
[334152272,1722798654584,-151.0,0.00014246,2]
[334152274,1722798654594,-696.13166,0.00014247,2]
[334152276,1722798654603,-150.112233,0.000143,2]
[334152277,1722798654612,-150.0,0.00014304,2]
[334152279,1722798654623,-506.0,0.00014304,2]
[334152282,1722798654635,-1411.0,0.00014304,2]
[334152284,1722798654646,-11825.69576231,0.0001432,2]
[334152286,1722798654658,-150.112233,0.000144,2]
[334152288,1722798654670,-153.0,0.00014435,2]
[334152290,1722798654681,-455.4154248,0.00014442,2]
[334152292,1722798654692,-150.112233,0.000145,2]
[334152294,1722798654702,-24386.4395178,0.0001451,2]
[334152296,1722798654713,-1927.69,0.00014518,2]
[334152298,1722798654726,-152.741646,0.00014519,2]
[334152301,1722798654746,-558.155727,0.00014519,2]
[334152303,1722798654760,-558.155727,0.00014519,2]
[334152305,1722798654770,-151.0,0.00014519,2]
[334152307,1722798654780,-2361.98,0.00014519,2]
[334152309,1722798654791,-151.0,0.00014519,2]
[334152311,1722798654801,-151.0,0.00014519,2]
[334152313,1722798654813,-151.0,0.00014519,2]
[334152315,1722798654824,-500.0,0.00014519,2]
[334152317,1722798654834,-500.0,0.00014519,2]
[334152319,1722798654844,-151.0,0.00014519,2]
[334152321,1722798654855,-684.17,0.00014519,2]
[334152323,1722798654865,-151.0,0.00014519,2]
[334152325,1722798654876,-168.996398,0.00014519,2]
[334152327,1722798654886,-168.996398,0.00014519,2]
[334152329,1722798654895,-1185.65494,0.00014519,2]
[334152331,1722798654906,-1185.65494,0.00014519,2]
[334152333,1722798654916,-500.0,0.00014519,2]
[334152334,1722798654925,-500.0,0.00014519,2]
[334152336,1722798654935,-151.0,0.00014519,2]
[334152338,1722798654945,-500.0,0.00014519,2]
[334152340,1722798654955,-151.0,0.00014519,2]
[334152342,1722798654965,-151.0,0.00014519,2]
[334152344,1722798654974,-151.0,0.00014519,2]
[334152346,1722798654984,-1517.93,0.00014519,2]
[334152348,1722798654995,-500.0,0.00014519,2]
[334152350,1722798655005,-158.189145,0.00014519,2]
[334152352,1722798655015,-158.189145,0.00014519,2]
[334152355,1722798655027,-500.0,0.00014519,2]
[334152357,1722798655038,-500.0,0.0001452,2]
[334152359,1722798655049,-500.0,0.0001452,2]
[334152361,1722798655060,-500.0,0.0001452,2]
[334152363,1722798655071,-500.0,0.0001452,2]
[334152365,1722798655084,-500.0,0.0001452,2]
[334152367,1722798655096,-500.0,0.0001452,2]
[334152369,1722798655107,-703.06,0.0001452,2]
[334152371,1722798655118,-529.97,0.0001452,2]
[334152373,1722798655130,-1117.560069,0.0001452,2]
[334152375,1722798655143,-151.0,0.0001452,2]
[334152378,1722798655154,-609.47,0.0001452,2]
[334152379,1722798655164,-2235.31,0.0001452,2]
[334152381,1722798655174,-500.0,0.0001452,2]
[334152383,1722798655183,-500.0,0.0001452,2]
[334152385,1722798655193,-987.04,0.0001452,2]
[334152387,1722798655203,-500.0,0.0001452,2]
[334152389,1722798655213,-500.0,0.0001452,2]
[334152391,1722798655226,-578.51,0.0001452,2]
[334152393,1722798655236,-1052.12,0.0001452,2]
[334152395,1722798655245,-422.07473233,0.0001452,2]
[334152397,1722798655255,-500.0,0.0001452,2]
[334152399,1722798655267,-500.0,0.0001452,2]
[334152401,1722798655277,-500.0,0.0001452,2]
[334152403,1722798655289,-500.0,0.0001452,2]
[334152405,1722798655299,-603.95,0.0001452,2]
[334152407,1722798655311,-500.0,0.0001452,2]
[334152409,1722798655321,-430.92018004,0.0001452,2]
[334152411,1722798655331,-548.97,0.0001452,2]
[334152412,1722798655340,-500.0,0.0001452,2]
[334152414,1722798655349,-500.0,0.0001452,2]
[334152416,1722798655359,-1617.76,0.0001452,2]
[334152418,1722798655369,-881.31,0.0001452,2]
[334152420,1722798655379,-748.23,0.0001452,2]
[334152422,1722798655391,-1896.14,0.0001452,2]
[334152424,1722798655403,-625.012635,0.0001452,2]
[334152426,1722798655414,-1639.321464,0.0001452,2]
[334152429,1722798655426,-500.0,0.0001452,2]
[334152431,1722798655437,-500.0,0.0001452,2]
[334152433,1722798655450,-1639.321464,0.0001452,2]
[334152435,1722798655460,-500.0,0.0001452,2]
[334152437,1722798655471,-320.938911,0.0001452,2]
[334152439,1722798655483,-500.0,0.0001452,2]
[334152441,1722798655493,-320.938911,0.0001452,2]
[334152443,1722798655502,-500.0,0.0001452,2]
[334152445,1722798655512,-367.88690048,0.00014531,2]
[334152447,1722798655524,-620.03168089,0.00014579,2]
[334152449,1722798655534,-1927.69,0.00014696,2]
[334152451,1722798655544,-150.112233,0.000147,2]
[334152453,1722798655553,-150.112233,0.000147,2]
[334152455,1722798655565,-6355.37449435,0.00014767,2]
[334152457,1722798655576,-24386.4395178,0.00014774,2]
[334152459,1722798655586,-152.22470615,0.00014782,2]
[334152461,1722798655599,-151.0,0.00014783,2]
[334152463,1722798655610,-151.0,0.00014783,2]
[334152465,1722798655619,-151.0,0.00014783,2]
[334152467,1722798655629,-151.0,0.00014783,2]
[334152469,1722798655639,-151.0,0.00014783,2]
[334152471,1722798655649,-151.0,0.00014783,2]
[334152473,1722798655659,-151.0,0.00014783,2]
[334152475,1722798655670,-151.0,0.00014783,2]
[334152477,1722798655680,-168.996398,0.00014783,2]
[334152479,1722798655690,-168.996398,0.00014783,2]
[334152481,1722798655701,-1185.65494,0.00014783,2]
[334152483,1722798655711,-1185.65494,0.00014783,2]
[334152485,1722798655723,-151.0,0.00014783,2]
[334152487,1722798655733,-151.0,0.00014783,2]
[334152489,1722798655743,-151.0,0.00014783,2]
[334152491,1722798655753,-151.0,0.00014783,2]
[334152492,1722798655763,-1927.69,0.00014783,2]
[334152494,1722798655772,-158.189145,0.00014783,2]
[334152496,1722798655782,-158.189145,0.00014783,2]
[334152498,1722798655793,-151.0,0.00014784,2]
[334152500,1722798655803,-558.155727,0.00014784,2]
[334152502,1722798655815,-558.155727,0.00014784,2]
[334152504,1722798655826,-151.0,0.00014784,2]
[334152506,1722798655835,-1117.560069,0.00014784,2]
[334152508,1722798655846,-2361.98,0.00014793,2]
[334152510,1722798655856,-500.0,0.00014793,2]
[334152512,1722798655866,-500.0,0.00014793,2]
[334152514,1722798655875,-684.17,0.00014793,2]
[334152516,1722798655885,-500.0,0.00014793,2]
[334152518,1722798655894,-500.0,0.00014793,2]
[334152520,1722798655904,-500.0,0.00014793,2]
[334152522,1722798655914,-1517.93,0.00014793,2]
[334152524,1722798655926,-1927.69,0.00014793,2]
[334152526,1722798655937,-1927.69,0.00014793,2]
[334152528,1722798655947,-500.0,0.00014793,2]
[334152530,1722798655956,-23152.2632017,0.00014794,2]
[334152532,1722798655966,-4033.46410639,0.00014794,2]
[334152534,1722798655976,-1630.23174338,0.00014794,2]
[334152536,1722798655986,-1880.67694903,0.00014794,2]
[334152538,1722798655996,-500.0,0.00014794,2]
[334152540,1722798656005,-151.0,0.00014794,2]
[334152542,1722798656015,-500.0,0.00014794,2]
[334152544,1722798656025,-151.0,0.00014794,2]
[334152545,1722798656034,-500.0,0.00014794,2]
[334152547,1722798656044,-500.0,0.00014794,2]
[334152549,1722798656054,-151.0,0.00014794,2]
[334152551,1722798656065,-151.0,0.00014794,2]
[334152553,1722798656074,-500.0,0.00014794,2]
[334152555,1722798656084,-500.0,0.00014794,2]
[334152557,1722798656094,-703.06,0.00014794,2]
[334152559,1722798656104,-529.97,0.00014794,2]
[334152561,1722798656113,-609.47,0.00014794,2]
[334152563,1722798656122,-2235.31,0.00014794,2]
[334152565,1722798656132,-500.0,0.00014794,2]
[334152567,1722798656141,-500.0,0.00014794,2]
[334152569,1722798656150,-987.04,0.00014794,2]
[334152571,1722798656160,-500.0,0.00014794,2]
[334152572,1722798656170,-500.0,0.00014794,2]
[334152573,1722798656179,-151.0,0.00014794,2]
[334152574,1722798656188,-151.0,0.00014794,2]
[334152575,1722798656198,-578.51,0.00014794,2]
[334152576,1722798656207,-151.0,0.00014794,2]
[334152577,1722798656327,-231.38037,0.00014794,2]
[334152578,1722798656339,-1052.12,0.00014794,2]
[334152579,1722798656352,-168.996398,0.00014794,2]
[334152580,1722798656363,-168.996398,0.00014794,2]
[334152581,1722798656373,-500.0,0.00014794,2]
[334152582,1722798656383,-500.0,0.00014794,2]
[334152583,1722798656393,-1185.65494,0.00014794,2]
[334152584,1722798656404,-500.0,0.00014794,2]
[334152585,1722798656413,-1185.65494,0.00014794,2]
[334152586,1722798656423,-500.0,0.00014794,2]
[334152587,1722798656432,-151.0,0.00014794,2]
[334152589,1722798656443,-500.0,0.00014794,2]
[334152591,1722798656455,-151.0,0.00014794,2]
[334152593,1722798656465,-260.83996,0.00014794,2]
[334152595,1722798656474,-219.204602,0.00014794,2]
[334152597,1722798656485,-548.97,0.00014794,2]
[334152599,1722798656495,-500.0,0.00014794,2]
[334152601,1722798656504,-500.0,0.00014794,2]
[334152603,1722798656514,-1617.76,0.00014794,2]
[334152605,1722798656527,-881.31,0.00014794,2]
[334152608,1722798656539,-748.23,0.00014794,2]
[334152610,1722798656550,-1896.14,0.00014794,2]
[334152612,1722798656564,-158.189145,0.00014794,2]
[334152614,1722798656576,-158.189145,0.00014794,2]
[334152616,1722798656587,-1639.321464,0.00014794,2]
[334152619,1722798656599,-500.0,0.00014794,2]
[334152621,1722798656608,-500.0,0.00014794,2]
[334152623,1722798656619,-1639.321464,0.00014794,2]
[334152625,1722798656629,-500.0,0.00014794,2]
[334152627,1722798656639,-320.938911,0.00014794,2]
[334152629,1722798656650,-500.0,0.00014794,2]
[334152631,1722798656661,-320.938911,0.00014794,2]
[334152633,1722798656671,-500.0,0.00014794,2]
[334152635,1722798656682,-14511.20513485,0.00014794,2]
[334152638,1722798656692,-200.0,0.00014795,2]
[334152640,1722798656702,-2361.98,0.00014822,2]
[334152642,1722798656713,-1117.560069,0.0001486,2]
[334152644,1722798656724,-1117.560069,0.0001486,2]
[334152646,1722798656736,-150.112233,0.000149,2]
[334152648,1722798656746,-3168.63237076,0.00014933,2]
[334152650,1722798656757,-1091.57771247,0.00014999,2]
[334152652,1722798656767,-309.45844772,0.00015,2]
[334152654,1722798656781,-459.69835721,0.00015,4]
[334152656,1722798656792,-2848.36326452,0.00015,2]
[334152658,1722798656803,-492.40339763,0.00015,2]
[334152660,1722798656816,-2036.46539249,0.00015,2]
[334152662,1722798656827,-1108.76834352,0.00015,2]
[334152664,1722798656837,-951.69950854,0.00015,2]
[334152666,1722798656847,-558.155727,0.00015,2]
[334152668,1722798656856,-558.155727,0.00015,2]
[334152670,1722798656865,-151.0,0.00015,2]
[334152672,1722798656874,-150.112233,0.00015,2]
[334152674,1722798656884,-905.0,0.00015,2]
[334152676,1722798656894,-153.0,0.00015041,2]
[334152679,1722798656918,-153.0,0.00015041,2]
[334152681,1722798656930,-1927.69,0.00015057,2]
[334152683,1722798656941,-151.0,0.00015067,2]
[334152685,1722798656952,-151.0,0.00015067,2]
[334152687,1722798656966,-151.0,0.00015067,2]
[334152689,1722798656976,-2361.98,0.00015067,2]
[334152691,1722798656987,-151.0,0.00015067,2]
[334152694,1722798656999,-500.0,0.00015067,2]
[334152696,1722798657011,-151.0,0.00015067,2]
[334152698,1722798657023,-500.0,0.00015067,2]
[334152700,1722798657036,-151.0,0.00015067,2]
[334152702,1722798657047,-684.17,0.00015067,2]
[334152704,1722798657058,-168.996398,0.00015067,2]
[334152707,1722798657070,-168.996398,0.00015067,2]
[334152709,1722798657081,-1185.65494,0.00015067,2]
[334152711,1722798657094,-1185.65494,0.00015067,2]
[334152713,1722798657104,-500.0,0.00015067,2]
[334152715,1722798657115,-500.0,0.00015067,2]
[334152717,1722798657126,-151.0,0.00015067,2]
[334152719,1722798657138,-500.0,0.00015067,2]
[334152721,1722798657149,-151.0,0.00015067,2]
[334152723,1722798657160,-1517.93,0.00015067,2]
[334152726,1722798657173,-1927.69,0.00015067,2]
[334152728,1722798657186,-158.189145,0.00015067,2]
[334152730,1722798657198,-158.189145,0.00015067,2]
[334152732,1722798657208,-401.20507782,0.00015068,2]
[334152734,1722798657222,-546.78501156,0.00015068,2]
[334152736,1722798657233,-500.0,0.00015068,2]
[334152738,1722798657242,-500.0,0.00015068,2]
[334152740,1722798657252,-311.73,0.00015068,2]
[334152742,1722798657263,-500.0,0.00015068,2]
[334152744,1722798657273,-558.155727,0.00015068,2]
[334152746,1722798657283,-558.155727,0.00015068,2]
[334152748,1722798657293,-151.0,0.00015068,2]
[334152750,1722798657304,-703.06,0.00015068,2]
[334152752,1722798657315,-529.97,0.00015068,2]
[334152754,1722798657325,-1117.560069,0.00015068,2]
[334152756,1722798657335,-1117.560069,0.00015068,2]
[334152758,1722798657344,-609.47,0.00015068,2]
[334152760,1722798657354,-2235.31,0.00015068,2]
[334152762,1722798657364,-500.0,0.00015068,2]
[334152764,1722798657373,-500.0,0.00015068,2]
[334152766,1722798657383,-987.04,0.00015068,2]
[334152768,1722798657392,-500.0,0.00015068,2]
[334152770,1722798657402,-500.0,0.00015068,2]
[334152772,1722798657412,-578.51,0.00015068,2]
[334152774,1722798657421,-1052.12,0.00015068,2]
[334152776,1722798657431,-500.0,0.00015068,2]
[334152778,1722798657440,-500.0,0.00015068,2]
[334152780,1722798657450,-500.0,0.00015068,2]
[334152782,1722798657459,-500.0,0.00015068,2]
[334152784,1722798657469,-37.052133,0.00015068,2]
[334152788,1722798657491,-462.947867,0.00015068,2]
[334152790,1722798657501,-548.97,0.00015068,2]
[334152792,1722798657511,-500.0,0.00015068,2]
[334152794,1722798657520,-565.53707047,0.00015068,2]
[334152796,1722798657530,-1617.76,0.00015068,2]
[334152798,1722798657539,-881.31,0.00015068,2]
[334152800,1722798657549,-748.23,0.00015068,2]
[334152802,1722798657558,-1896.14,0.00015068,2]
[334152804,1722798657569,-1639.321464,0.00015068,2]
[334152806,1722798657579,-500.0,0.00015068,2]
[334152808,1722798657589,-500.0,0.00015068,2]
[334152810,1722798657598,-1639.321464,0.00015068,2]
[334152812,1722798657608,-500.0,0.00015068,2]
[334152814,1722798657618,-320.938911,0.00015068,2]
[334152816,1722798657627,-500.0,0.00015068,2]
[334152818,1722798657637,-320.938911,0.00015068,2]
[334152820,1722798657646,-500.0,0.00015068,2]
[334152822,1722798657656,-1192.92,0.00015069,2]
[334152823,1722798657665,-150.112233,0.000152,2]
[334152826,1722798657676,-150.112233,0.000152,2]
[334152828,1722798657686,-620.00158404,0.00015308,2]
[334152830,1722798657695,-1927.69,0.0001534,2]
[334152832,1722798657705,-2361.98,0.00015341,2]
[334152834,1722798657715,-231.29502066,0.00015341,2]
[334152836,1722798657724,-500.0,0.00015341,2]
[334152837,1722798657734,-684.17,0.00015341,2]
[334152839,1722798657743,-540.10955225,0.00015341,2]
[334152842,1722798657753,-500.0,0.00015341,2]
[334152843,1722798657762,-500.0,0.00015341,2]
[334152845,1722798657772,-1517.93,0.00015341,2]
[334152848,1722798657782,-151.0,0.00015342,2]
[334152849,1722798657792,-500.0,0.00015342,2]
[334152851,1722798657801,-500.0,0.00015342,2]
[334152853,1722798657813,-500.0,0.00015342,2]
[334152855,1722798657823,-703.06,0.00015342,2]
[334152857,1722798657838,-529.97,0.00015342,2]
[334152859,1722798657848,-609.47,0.00015342,2]
[334152861,1722798657857,-2235.31,0.00015342,2]
[334152863,1722798657868,-500.0,0.00015342,2]
[334152865,1722798657877,-500.0,0.00015342,2]
[334152867,1722798657887,-987.04,0.00015342,2]
[334152869,1722798657897,-500.0,0.00015342,2]
[334152871,1722798657906,-500.0,0.00015342,2]
[334152873,1722798657916,-151.0,0.00015342,2]
[334152875,1722798657926,-578.51,0.00015342,2]
[334152877,1722798657936,-200.386461,0.00015342,2]
[334152879,1722798657945,-151.0,0.00015342,2]
[334152881,1722798657954,-1052.12,0.00015342,2]
[334152883,1722798657964,-168.996398,0.00015342,2]
[334152885,1722798657974,-168.996398,0.00015342,2]
[334152887,1722798657983,-500.0,0.00015342,2]
[334152889,1722798657992,-500.0,0.00015342,2]
[334152891,1722798658002,-1185.65494,0.00015342,2]
[334152894,1722798658012,-500.0,0.00015342,2]
[334152896,1722798658022,-1185.65494,0.00015342,2]
[334152898,1722798658031,-500.0,0.00015342,2]
[334152900,1722798658041,-151.0,0.00015342,2]
[334152902,1722798658050,-500.0,0.00015342,2]
[334152904,1722798658065,-151.0,0.00015342,2]
[334152905,1722798658074,-548.97,0.00015342,2]
[334152907,1722798658083,-500.0,0.00015342,2]
[334152909,1722798658092,-1617.76,0.00015342,2]
[334152911,1722798658101,-881.31,0.00015342,2]
[334152913,1722798658110,-748.23,0.00015342,2]
[334152915,1722798658121,-1896.14,0.00015342,2]
[334152917,1722798658130,-158.189145,0.00015342,2]
[334152919,1722798658140,-158.189145,0.00015342,2]
[334152921,1722798658150,-500.0,0.00015342,2]
[334152923,1722798658159,-500.0,0.00015342,2]
[334152925,1722798658168,-17.93103479,0.00015342,2]
[334152927,1722798658181,-482.06896521,0.00015342,2]
[334152929,1722798658191,-500.0,0.00015342,2]
[334152931,1722798658200,-500.0,0.00015342,2]
[334152933,1722798658210,-150.112233,0.000154,2]
[334152935,1722798658222,-142.94380179,0.000154,2]
[334155958,1722799835687,-300.0,9.898e-05,2]
[334155960,1722799835698,-176.14397417,9.998e-05,2]
[334155962,1722799835715,-123.85602583,9.998e-05,2]
[334155964,1722799835725,-338.37197417,9.999e-05,2]
[334156054,1722799841938,-230.19686782,9.999e-05,2]
[334156055,1722799841948,-727.52933543,9.999e-05,2]
[334156056,1722799841959,-156.73199194,9.999e-05,2]
[334156057,1722799841973,-288.53209712,9.999e-05,2]
[334156058,1722799841984,-602.16282237,9.999e-05,2]
[334156059,1722799841996,-174.57130593,9.999e-05,2]
[334156060,1722799842007,-849.39914621,9.999e-05,2]
[334156061,1722799842016,-155.06546205,9.999e-05,2]
[334156062,1722799842027,-240.80307792,9.999e-05,2]
[334156063,1722799842036,-163.06705816,9.999e-05,2]
[334156064,1722799842047,-779.66389887,9.999e-05,2]
[334156065,1722799842057,-154.77557542,9.999e-05,2]
[334156066,1722799842067,-188.2335741,9.999e-05,2]
[334156067,1722799842078,-154.77557542,9.999e-05,2]
[334156068,1722799842088,-258.81514474,9.999e-05,2]
[334156069,1722799842098,-403.74175046,9.999e-05,2]
[334156070,1722799842117,-244.84557874,9.999e-05,2]
[334156071,1722799842127,-155.45895157,9.999e-05,2]
[334156072,1722799842137,-196.46943428,9.999e-05,2]
[334156073,1722799842146,-231.63753916,9.999e-05,2]
[334156074,1722799842161,-532.14086008,9.999e-05,2]
[334156075,1722799842171,-196.20410851,9.999e-05,2]
[334156076,1722799842180,-506.48190828,9.999e-05,2]
[334156077,1722799842190,-209.86849569,9.999e-05,2]
[334156078,1722799842200,-180.4790292,9.999e-05,2]
[334156079,1722799842210,-154.77557542,9.999e-05,2]
[334156080,1722799842228,-319.72766707,9.999e-05,2]
[334156081,1722799842239,-160.1642143,9.999e-05,2]
[334156082,1722799842250,-342.05014288,9.999e-05,2]
[334156083,1722799842261,-154.77557542,9.999e-05,2]
[334156084,1722799842271,-205.1880395,9.999e-05,2]